[Event "*** SCC Grand Prix: Titled Tuesday Blitz"]
[Site "Chess.com"]
[Date "2020.07.07"]
[Round "7"]
[White "XiaoKangZhong"]
[Black "ammarzooqi"]
[Result "1-0"]
[WhiteElo "2399"]
[BlackElo "2183"]
[TimeControl "180+1"]
[EndTime "11:20:30 PDT"]
[Termination "XiaoKangZhong won by checkmate"]

1. e4 {[%clk 0:03:00.9]} 1... e5 {[%clk 0:02:57.7]} 2. Nf3 {[%clk 0:02:58.8]}
2... Nf6 {[%clk 0:02:57.6]} 3. Nxe5 {[%clk 0:02:58.2]} 3... d6 {[%clk 0:02:57]}
4. Nf3 {[%clk 0:02:58.1]} 4... Nxe4 {[%clk 0:02:56.1]} 5. Nc3 {[%clk 0:02:58.2]}
5... Nxc3 {[%clk 0:02:55.7]} 6. dxc3 {[%clk 0:02:58.3]} 6... Be7 {[%clk
0:02:56.4]} 7. Bd3 {[%clk 0:02:58.5]} 7... Be6 {[%clk 0:02:56.5]} 8. O-O {[%clk
0:02:58.9]} 8... O-O {[%clk 0:02:56.6]} 9. Be3 {[%clk 0:02:55.7]} 9... Nc6
{[%clk 0:02:56]} 10. Nd4 {[%clk 0:02:55.1]} 10... Nxd4 {[%clk 0:02:53.4]} 11.
Bxd4 {[%clk 0:02:56]} 11... Bf6 {[%clk 0:02:52.9]} 12. Qf3 {[%clk 0:02:49.8]}
12... Bxd4 {[%clk 0:02:29.7]} 13. cxd4 {[%clk 0:02:50.7]} 13... d5 {[%clk
0:02:19.8]} 14. Rfe1 {[%clk 0:02:47.3]} 14... c6 {[%clk 0:02:14.7]} 15. c3
{[%clk 0:02:45.7]} 15... Qd7 {[%clk 0:02:13.3]} 16. h3 {[%clk 0:02:44.1]} 16...
Rac8 {[%clk 0:02:06.3]} 17. Re5 {[%clk 0:02:38.4]} 17... Rfe8 {[%clk 0:01:49.8]}
18. Rae1 {[%clk 0:02:37.2]} 18... c5 {[%clk 0:01:44.1]} 19. dxc5 {[%clk
0:02:28.1]} 19... Rxc5 {[%clk 0:01:43.7]} 20. Bf5 {[%clk 0:02:27.6]} 20... Rc6
{[%clk 0:01:29.9]} 21. Qxd5 {[%clk 0:02:13]} 21... Rd6 {[%clk 0:01:18]} 22. Qb3
{[%clk 0:02:06.4]} 22... g6 {[%clk 0:01:12.4]} 23. Bxe6 {[%clk 0:02:05.8]} 23...
Rdxe6 {[%clk 0:01:08.2]} 24. Rxe6 {[%clk 0:02:05.2]} 24... Rxe6 {[%clk
0:01:08.3]} 25. Rxe6 {[%clk 0:02:03.1]} 25... fxe6 {[%clk 0:01:08.4]} 26. g3
{[%clk 0:01:58.6]} 26... Kf7 {[%clk 0:01:08]} 27. Qb4 {[%clk 0:01:57.7]} 27...
Qd1+ {[%clk 0:01:06.4]} 28. Kh2 {[%clk 0:01:56]} 28... Qd5 {[%clk 0:01:05.2]}
29. Qf4+ {[%clk 0:01:46.8]} 29... Kg7 {[%clk 0:01:05.1]} 30. c4 {[%clk
0:01:43.8]} 30... Qc6 {[%clk 0:01:01.8]} 31. Qe5+ {[%clk 0:01:39.2]} 31... Kf7
{[%clk 0:01:01.1]} 32. b3 {[%clk 0:01:32.3]} 32... a6 {[%clk 0:01:01]} 33. Qb8
{[%clk 0:01:22.5]} 33... Qb6 {[%clk 0:00:55.6]} 34. Kg1 {[%clk 0:01:17.6]} 34...
Qc6 {[%clk 0:00:54.3]} 35. Qh8 {[%clk 0:01:14.2]} 35... h5 {[%clk 0:00:52.3]}
36. Qh7+ {[%clk 0:01:11.1]} 36... Kf6 {[%clk 0:00:52.5]} 37. Qh8+ {[%clk
0:01:10.7]} 37... Kf7 {[%clk 0:00:53.1]} 38. Qd4 {[%clk 0:01:10.5]} 38... Qc7
{[%clk 0:00:45.5]} 39. Qf4+ {[%clk 0:01:06.8]} 39... Qxf4 {[%clk 0:00:44.6]} 40.
gxf4 {[%clk 0:01:07.7]} 40... Ke7 {[%clk 0:00:35.1]} 41. Kg2 {[%clk 0:01:07.5]}
41... Kd6 {[%clk 0:00:35.4]} 42. Kf3 {[%clk 0:01:07.7]} 42... Kc5 {[%clk
0:00:35.4]} 43. Ke4 {[%clk 0:00:28.2]} 43... Kb4 {[%clk 0:00:35.6]} 44. Kd4
{[%clk 0:00:28.7]} 44... Ka3 {[%clk 0:00:30.3]} 45. Kc3 {[%clk 0:00:28.5]} 45...
a5 {[%clk 0:00:23.6]} 46. c5 {[%clk 0:00:27.9]} 46... Kxa2 {[%clk 0:00:22.7]}
47. Kc4 {[%clk 0:00:27.9]} 47... Ka3 {[%clk 0:00:18.1]} 48. h4 {[%clk 0:00:17]}
48... a4 {[%clk 0:00:07.6]} 49. bxa4 {[%clk 0:00:14.2]} 49... Kxa4 {[%clk
0:00:08.2]} 50. c6 {[%clk 0:00:08.4]} 50... bxc6 {[%clk 0:00:08.2]} 51. Kc5
{[%clk 0:00:08.8]} 51... e5 {[%clk 0:00:07.1]} 52. fxe5 {[%clk 0:00:08.6]} 52...
g5 {[%clk 0:00:07.6]} 53. e6 {[%clk 0:00:07]} 53... gxh4 {[%clk 0:00:07.6]} 54.
e7 {[%clk 0:00:07.9]} 54... h3 {[%clk 0:00:08.5]} 55. e8=Q {[%clk 0:00:08.2]}
55... h2 {[%clk 0:00:09.4]} 56. Qe1 {[%clk 0:00:08.9]} 56... h4 {[%clk
0:00:09.4]} 57. Qh1 {[%clk 0:00:09.8]} 57... Kb3 {[%clk 0:00:10.1]} 58. Qxh2
{[%clk 0:00:10.7]} 58... Kc2 {[%clk 0:00:11]} 59. Qh3 {[%clk 0:00:11.6]} 59...
Kd2 {[%clk 0:00:11.9]} 60. Qxh4 {[%clk 0:00:12.5]} 60... Ke2 {[%clk 0:00:12.8]}
61. f4 {[%clk 0:00:13.1]} 61... Kf3 {[%clk 0:00:13.7]} 62. f5 {[%clk 0:00:14]}
62... Ke3 {[%clk 0:00:14.1]} 63. f6 {[%clk 0:00:14.9]} 63... Kf3 {[%clk
0:00:15]} 64. f7 {[%clk 0:00:15.8]} 64... Kg2 {[%clk 0:00:15.4]} 65. f8=Q {[%clk
0:00:16.1]} 65... Kg1 {[%clk 0:00:15.6]} 66. Qff2# {[%clk 0:00:16.7]} 1-0

[Event "*** SCC Grand Prix: Titled Tuesday Blitz"]
[Site "Chess.com"]
[Date "2020.07.07"]
[Round "7"]
[White "Korona_91"]
[Black "chess94cu"]
[Result "1-0"]
[WhiteElo "2480"]
[BlackElo "2591"]
[TimeControl "180+1"]
[EndTime "11:20:33 PDT"]
[Termination "Korona_91 won on time"]

1. e4 {[%clk 0:03:00.9]} 1... e5 {[%clk 0:02:57.7]} 2. Nf3 {[%clk 0:02:58.6]}
2... Nc6 {[%clk 0:02:58.3]} 3. Bc4 {[%clk 0:02:57.6]} 3... a6 {[%clk 0:02:58.8]}
4. O-O {[%clk 0:02:51.9]} 4... Be7 {[%clk 0:02:55.9]} 5. c3 {[%clk 0:02:51]}
5... Nf6 {[%clk 0:02:54]} 6. Re1 {[%clk 0:02:47.5]} 6... O-O {[%clk 0:02:45.4]}
7. d4 {[%clk 0:02:47.4]} 7... d6 {[%clk 0:02:45.8]} 8. h3 {[%clk 0:02:45.3]}
8... h6 {[%clk 0:02:43.8]} 9. Nbd2 {[%clk 0:02:44]} 9... Re8 {[%clk 0:02:42.1]}
10. Nf1 {[%clk 0:02:41.4]} 10... Bf8 {[%clk 0:02:39.5]} 11. Ng3 {[%clk
0:02:39.8]} 11... b5 {[%clk 0:02:37.4]} 12. Bb3 {[%clk 0:02:37.6]} 12... Bb7
{[%clk 0:02:29.6]} 13. a4 {[%clk 0:02:34.1]} 13... Na5 {[%clk 0:02:24.5]} 14.
Bc2 {[%clk 0:02:32.8]} 14... c5 {[%clk 0:02:24]} 15. axb5 {[%clk 0:02:29.9]}
15... axb5 {[%clk 0:02:22.6]} 16. dxc5 {[%clk 0:02:20.8]} 16... dxc5 {[%clk
0:02:16.7]} 17. Qxd8 {[%clk 0:02:21.2]} 17... Rexd8 {[%clk 0:02:17.3]} 18. Nxe5
{[%clk 0:02:20.2]} 18... Bd6 {[%clk 0:02:11.1]} 19. Nf3 {[%clk 0:02:08.1]} 19...
Bxg3 {[%clk 0:02:07.9]} 20. fxg3 {[%clk 0:02:08.8]} 20... Nc4 {[%clk 0:02:01.8]}
21. Rxa8 {[%clk 0:02:06.6]} 21... Rxa8 {[%clk 0:02:02.7]} 22. b3 {[%clk
0:02:03.4]} 22... Na3 {[%clk 0:01:38.6]} 23. Bxa3 {[%clk 0:01:52.5]} 23... Rxa3
{[%clk 0:01:39.5]} 24. e5 {[%clk 0:01:51.7]} 24... Nd5 {[%clk 0:01:36.8]} 25. c4
{[%clk 0:01:35.4]} 25... bxc4 {[%clk 0:01:31.1]} 26. bxc4 {[%clk 0:01:34.5]}
26... Nb6 {[%clk 0:01:31.5]} 27. Rb1 {[%clk 0:01:17.5]} 27... Ra6 {[%clk
0:01:21.2]} 28. Bd3 {[%clk 0:01:13.4]} 28... Kf8 {[%clk 0:01:15.5]} 29. Kf2
{[%clk 0:01:12.8]} 29... Bc6 {[%clk 0:01:13.2]} 30. Ke3 {[%clk 0:01:10.4]} 30...
Nd7 {[%clk 0:01:10.4]} 31. e6 {[%clk 0:01:10.1]} 31... fxe6 {[%clk 0:01:09.1]}
32. Nh4 {[%clk 0:01:08.3]} 32... Ne5 {[%clk 0:01:07.1]} 33. Rb8+ {[%clk
0:01:06.9]} 33... Ke7 {[%clk 0:01:07]} 34. Be2 {[%clk 0:01:03.9]} 34... Ra3+
{[%clk 0:01:05.8]} 35. Kf2 {[%clk 0:00:54.4]} 35... Ra2 {[%clk 0:00:58.1]} 36.
Ke3 {[%clk 0:00:50.2]} 36... Rc2 {[%clk 0:00:50.7]} 37. Rc8 {[%clk 0:00:48.5]}
37... Rc3+ {[%clk 0:00:43.7]} 38. Kf2 {[%clk 0:00:43]} 38... Kd7 {[%clk
0:00:43.4]} 39. Rg8 {[%clk 0:00:41.8]} 39... g5 {[%clk 0:00:43.9]} 40. Rg7+
{[%clk 0:00:38.8]} 40... Kd6 {[%clk 0:00:43.4]} 41. Nf3 {[%clk 0:00:39.4]} 41...
Bxf3 {[%clk 0:00:43.5]} 42. gxf3 {[%clk 0:00:40.3]} 42... Nxc4 {[%clk
0:00:42.1]} 43. Rh7 {[%clk 0:00:40.3]} 43... Ne3 {[%clk 0:00:41.4]} 44. Rxh6
{[%clk 0:00:40.1]} 44... Nf5 {[%clk 0:00:41.9]} 45. Rh8 {[%clk 0:00:40.1]} 45...
Rc2 {[%clk 0:00:41.3]} 46. Ke1 {[%clk 0:00:37.5]} 46... Nxg3 {[%clk 0:00:40.6]}
47. Bd3 {[%clk 0:00:37.6]} 47... Rh2 {[%clk 0:00:09.5]} 48. Rg8 {[%clk 0:00:37]}
48... Ke5 {[%clk 0:00:07.8]} 49. Rxg5+ {[%clk 0:00:33.8]} 49... Kf4 {[%clk
0:00:08.3]} 50. Rxc5 {[%clk 0:00:31.7]} 50... Kxf3 {[%clk 0:00:07.4]} 51. Re5
{[%clk 0:00:27.8]} 51... Rxh3 {[%clk 0:00:05.7]} 52. Rxe6 {[%clk 0:00:27.7]}
52... Rh2 {[%clk 0:00:05.3]} 53. Bb5 {[%clk 0:00:24.6]} 53... Kf4 {[%clk
0:00:05.1]} 54. Kd1 {[%clk 0:00:23.1]} 54... Ne4 {[%clk 0:00:04.9]} 55. Bc6
{[%clk 0:00:20.5]} 55... Nc3+ {[%clk 0:00:03.4]} 56. Kc1 {[%clk 0:00:20.8]}
56... Ne2+ {[%clk 0:00:02.6]} 57. Kd1 {[%clk 0:00:20.5]} 57... Nd4 {[%clk
0:00:03.1]} 58. Rf6+ {[%clk 0:00:19]} 58... Ke5 {[%clk 0:00:03.4]} 59. Rg6
{[%clk 0:00:19.2]} 59... Rb2 {[%clk 0:00:01]} 60. Rg5+ {[%clk 0:00:17.8]} 1-0

[Event "*** SCC Grand Prix: Titled Tuesday Blitz"]
[Site "Chess.com"]
[Date "2020.07.07"]
[Round "7"]
[White "eljanov"]
[Black "VishnuPrasanna"]
[Result "0-1"]
[WhiteElo "2871"]
[BlackElo "2762"]
[TimeControl "180+1"]
[EndTime "11:20:34 PDT"]
[Termination "VishnuPrasanna won on time"]

1. e4 {[%clk 0:03:00.9]} 1... c5 {[%clk 0:02:59.5]} 2. Nf3 {[%clk 0:03:00.6]}
2... d6 {[%clk 0:02:59.9]} 3. Bb5+ {[%clk 0:03:00.3]} 3... Nd7 {[%clk
0:02:59.5]} 4. Ba4 {[%clk 0:03:00.4]} 4... Nf6 {[%clk 0:02:59]} 5. O-O {[%clk
0:02:59.9]} 5... a6 {[%clk 0:02:57.5]} 6. c4 {[%clk 0:02:59.9]} 6... g6 {[%clk
0:02:57.1]} 7. Nc3 {[%clk 0:02:59.3]} 7... Bg7 {[%clk 0:02:57.6]} 8. d3 {[%clk
0:02:59.7]} 8... O-O {[%clk 0:02:58]} 9. Rb1 {[%clk 0:02:58.8]} 9... Ne8 {[%clk
0:02:56.6]} 10. Be3 {[%clk 0:02:47.4]} 10... Nc7 {[%clk 0:02:54.7]} 11. d4
{[%clk 0:02:39.4]} 11... Ne6 {[%clk 0:02:44.7]} 12. d5 {[%clk 0:02:32.8]} 12...
Nc7 {[%clk 0:02:43.9]} 13. Qc1 {[%clk 0:01:43.3]} 13... b5 {[%clk 0:02:14]} 14.
cxb5 {[%clk 0:01:42.6]} 14... axb5 {[%clk 0:02:13.9]} 15. Bxb5 {[%clk
0:01:31.3]} 15... Nxb5 {[%clk 0:02:14.1]} 16. Nxb5 {[%clk 0:01:31.5]} 16... Rxa2
{[%clk 0:02:11]} 17. Nc3 {[%clk 0:01:30.7]} 17... Ra8 {[%clk 0:02:05.7]} 18. Bh6
{[%clk 0:01:30.4]} 18... Ba6 {[%clk 0:01:56]} 19. Re1 {[%clk 0:01:30.3]} 19...
Bd3 {[%clk 0:01:53.9]} 20. Bxg7 {[%clk 0:01:29.7]} 20... Kxg7 {[%clk 0:01:54.8]}
21. Ra1 {[%clk 0:01:29]} 21... Qb6 {[%clk 0:01:52.7]} 22. e5 {[%clk 0:01:15.3]}
22... dxe5 {[%clk 0:01:44.5]} 23. Nxe5 {[%clk 0:01:12]} 23... Nxe5 {[%clk
0:01:44.8]} 24. Rxe5 {[%clk 0:01:11.2]} 24... Qd6 {[%clk 0:01:45.2]} 25. Rxa8
{[%clk 0:01:03.9]} 25... Qxe5 {[%clk 0:01:42.6]} 26. Rxf8 {[%clk 0:00:57.4]}
26... Kxf8 {[%clk 0:01:43.5]} 27. h3 {[%clk 0:00:50.1]} 27... Bc4 {[%clk
0:01:40.1]} 28. Qe3 {[%clk 0:00:44.8]} 28... Qd4 {[%clk 0:01:36.2]} 29. g4
{[%clk 0:00:36.9]} 29... f6 {[%clk 0:01:35.7]} 30. Kg2 {[%clk 0:00:37]} 30...
Bxd5+ {[%clk 0:01:34.6]} 31. Nxd5 {[%clk 0:00:33.6]} 31... Qxd5+ {[%clk
0:01:35.2]} 32. f3 {[%clk 0:00:31.3]} 32... c4 {[%clk 0:01:31.7]} 33. Qc3 {[%clk
0:00:23.8]} 33... Kf7 {[%clk 0:01:30.1]} 34. Kf2 {[%clk 0:00:24.2]} 34... h5
{[%clk 0:01:30.3]} 35. Ke3 {[%clk 0:00:23.3]} 35... h4 {[%clk 0:01:29.9]} 36.
Qd4 {[%clk 0:00:20.7]} 36... Qb5 {[%clk 0:01:29.4]} 37. Kd2 {[%clk 0:00:20.6]}
37... Qc6 {[%clk 0:01:29.2]} 38. Qe3 {[%clk 0:00:15.4]} 38... g5 {[%clk
0:01:27.2]} 39. Kc3 {[%clk 0:00:15.4]} 39... Qb5 {[%clk 0:01:27.6]} 40. Kc2
{[%clk 0:00:13.5]} 40... Qa4+ {[%clk 0:01:26.7]} 41. Kd2 {[%clk 0:00:12.5]}
41... Qb4+ {[%clk 0:01:23.5]} 42. Kc2 {[%clk 0:00:12.7]} 42... e5 {[%clk
0:01:23.2]} 43. Qe4 {[%clk 0:00:12.4]} 43... Ke6 {[%clk 0:01:22.7]} 44. Qf5+
{[%clk 0:00:12.2]} 44... Ke7 {[%clk 0:01:22.8]} 45. Qh7+ {[%clk 0:00:09.9]}
45... Kd6 {[%clk 0:01:22.7]} 46. Qf5 {[%clk 0:00:09.7]} 46... Qb3+ {[%clk
0:01:21]} 47. Kc1 {[%clk 0:00:10]} 47... Qe3+ {[%clk 0:01:21.2]} 48. Kc2 {[%clk
0:00:10.4]} 48... Qf4 {[%clk 0:01:15.9]} 49. Qc8 {[%clk 0:00:03.5]} 49... Qxf3
{[%clk 0:01:01.8]} 50. Qd8+ {[%clk 0:00:03.4]} 50... Kc5 {[%clk 0:01:01.9]} 51.
Qa5+ {[%clk 0:00:02.3]} 51... Kd4 {[%clk 0:01:01.2]} 52. Qb6+ {[%clk 0:00:02.8]}
52... Ke4 {[%clk 0:01:01]} 53. Qc6+ {[%clk 0:00:03.3]} 53... Kf4 {[%clk
0:00:49.9]} 54. Qxf6+ {[%clk 0:00:03.4]} 54... Ke4 {[%clk 0:00:45.3]} 55. Qxg5
{[%clk 0:00:02.8]} 55... Qd3+ {[%clk 0:00:36.6]} 56. Kc1 {[%clk 0:00:03.1]}
56... Qxh3 {[%clk 0:00:32.5]} 57. Qf5+ {[%clk 0:00:02.9]} 57... Kd4 {[%clk
0:00:32.9]} 58. Qd7+ {[%clk 0:00:03.4]} 58... Ke4 {[%clk 0:00:30.9]} 59. Qf5+
{[%clk 0:00:03]} 59... Kd4 {[%clk 0:00:30.5]} 60. Qd7+ {[%clk 0:00:03.4]} 60...
Ke3 {[%clk 0:00:28.8]} 61. Kc2 {[%clk 0:00:03.7]} 61... Qf1 {[%clk 0:00:25.2]}
62. Qd2+ {[%clk 0:00:03.3]} 62... Ke4 {[%clk 0:00:25.3]} 63. g5 {[%clk
0:00:03.5]} 63... Qd3+ {[%clk 0:00:24.2]} 0-1

[Event "*** SCC Grand Prix: Titled Tuesday Blitz"]
[Site "Chess.com"]
[Date "2020.07.07"]
[Round "7"]
[White "djano"]
[Black "Carnivoras"]
[Result "0-1"]
[WhiteElo "2460"]
[BlackElo "2604"]
[TimeControl "180+1"]
[EndTime "11:20:34 PDT"]
[Termination "Carnivoras won by checkmate"]

1. d4 {[%clk 0:03:00.9]} 1... d5 {[%clk 0:02:59.5]} 2. Bf4 {[%clk 0:02:58.8]}
2... Nf6 {[%clk 0:02:59.1]} 3. Nf3 {[%clk 0:02:52.9]} 3... Bf5 {[%clk
0:02:58.8]} 4. e3 {[%clk 0:02:49.9]} 4... e6 {[%clk 0:02:59.3]} 5. c4 {[%clk
0:02:49.8]} 5... Bd6 {[%clk 0:02:58.9]} 6. Nc3 {[%clk 0:02:43.1]} 6... Bxf4
{[%clk 0:02:58.1]} 7. exf4 {[%clk 0:02:44]} 7... O-O {[%clk 0:02:58.4]} 8. Qb3
{[%clk 0:02:34.3]} 8... Qc8 {[%clk 0:02:53]} 9. Rc1 {[%clk 0:02:31.1]} 9... c6
{[%clk 0:02:51.6]} 10. Be2 {[%clk 0:02:25.8]} 10... Nbd7 {[%clk 0:02:49.8]} 11.
O-O {[%clk 0:02:25.8]} 11... dxc4 {[%clk 0:02:49.5]} 12. Bxc4 {[%clk 0:02:25]}
12... Nb6 {[%clk 0:02:49.8]} 13. Be2 {[%clk 0:02:23.8]} 13... Bg4 {[%clk
0:02:49.5]} 14. Ne5 {[%clk 0:02:14.5]} 14... Bxe2 {[%clk 0:02:49.1]} 15. Nxe2
{[%clk 0:02:15.4]} 15... Nbd5 {[%clk 0:02:48]} 16. g3 {[%clk 0:02:12.2]} 16...
Qc7 {[%clk 0:02:45.6]} 17. Rfd1 {[%clk 0:02:11]} 17... Qb6 {[%clk 0:02:45.9]}
18. Qc2 {[%clk 0:02:04.5]} 18... Rad8 {[%clk 0:02:40.3]} 19. Nc3 {[%clk
0:01:59.7]} 19... g6 {[%clk 0:02:37]} 20. Na4 {[%clk 0:01:53.8]} 20... Qc7
{[%clk 0:02:34]} 21. Nc5 {[%clk 0:01:50]} 21... Kg7 {[%clk 0:02:27.8]} 22. a3
{[%clk 0:01:47.1]} 22... Nb6 {[%clk 0:02:23.8]} 23. a4 {[%clk 0:01:27.8]} 23...
a6 {[%clk 0:02:20.2]} 24. Qb3 {[%clk 0:01:20.2]} 24... Rb8 {[%clk 0:02:11.5]}
25. Nxf7 {[%clk 0:01:06.9]} 25... Qxf7 {[%clk 0:02:00]} 26. Qxb6 {[%clk
0:01:05.2]} 26... Nd5 {[%clk 0:02:00.1]} 27. Qb3 {[%clk 0:01:01.2]} 27... Kg8
{[%clk 0:01:53.3]} 28. Re1 {[%clk 0:00:59.8]} 28... Rfe8 {[%clk 0:01:53]} 29.
Rc2 {[%clk 0:00:48]} 29... Re7 {[%clk 0:01:16.4]} 30. Rce2 {[%clk 0:00:47.9]}
30... Rbe8 {[%clk 0:01:15.8]} 31. Qf3 {[%clk 0:00:43.7]} 31... Qf6 {[%clk
0:01:14.4]} 32. Qe4 {[%clk 0:00:38.1]} 32... Qf7 {[%clk 0:01:02.5]} 33. a5
{[%clk 0:00:37.9]} 33... Nf6 {[%clk 0:01:01.7]} 34. Qf3 {[%clk 0:00:36.5]} 34...
Nd5 {[%clk 0:01:00.7]} 35. h4 {[%clk 0:00:33.8]} 35... Qf6 {[%clk 0:00:59.4]}
36. Qe4 {[%clk 0:00:32.1]} 36... Kg7 {[%clk 0:00:59]} 37. Qe5 {[%clk 0:00:32.1]}
37... Kf7 {[%clk 0:00:56.9]} 38. Ne4 {[%clk 0:00:31]} 38... Qxe5 {[%clk
0:00:52.6]} 39. dxe5 {[%clk 0:00:31.9]} 39... Kg7 {[%clk 0:00:52.1]} 40. Nd6
{[%clk 0:00:32.2]} 40... Rf8 {[%clk 0:00:51.6]} 41. Re4 {[%clk 0:00:29.7]} 41...
Rb8 {[%clk 0:00:50.1]} 42. Rc1 {[%clk 0:00:29.2]} 42... Rd7 {[%clk 0:00:49.1]}
43. Kg2 {[%clk 0:00:26.2]} 43... Re7 {[%clk 0:00:49.3]} 44. Rcc4 {[%clk
0:00:23.3]} 44... Rc7 {[%clk 0:00:48.4]} 45. Ra4 {[%clk 0:00:22.8]} 45... Re7
{[%clk 0:00:43.6]} 46. Ra3 {[%clk 0:00:22.9]} 46... Rc7 {[%clk 0:00:42.2]} 47.
Rb3 {[%clk 0:00:23.1]} 47... Re7 {[%clk 0:00:41.6]} 48. Kf3 {[%clk 0:00:23.3]}
48... Rc7 {[%clk 0:00:41.5]} 49. g4 {[%clk 0:00:22.8]} 49... Rd7 {[%clk
0:00:41.9]} 50. Kg3 {[%clk 0:00:22.4]} 50... Rc7 {[%clk 0:00:34.2]} 51. f5
{[%clk 0:00:22.5]} 51... gxf5 {[%clk 0:00:31.4]} 52. gxf5 {[%clk 0:00:23.4]}
52... exf5 {[%clk 0:00:30.9]} 53. Nxf5+ {[%clk 0:00:24.3]} 53... Kf7 {[%clk
0:00:31.4]} 54. Nd6+ {[%clk 0:00:24.2]} 54... Ke6 {[%clk 0:00:31.8]} 55. f4
{[%clk 0:00:24.6]} 55... Rg7+ {[%clk 0:00:28.5]} 56. Kh3 {[%clk 0:00:19.6]}
56... b5 {[%clk 0:00:07.9]} 57. axb6 {[%clk 0:00:18.6]} 57... Rbg8 {[%clk
0:00:06.2]} 58. f5+ {[%clk 0:00:17.6]} 58... Kd7 {[%clk 0:00:06.5]} 59. b7
{[%clk 0:00:13.1]} 59... Rg1 {[%clk 0:00:06.2]} 60. Kh2 {[%clk 0:00:11.6]} 60...
R8g2+ {[%clk 0:00:05.9]} 61. Kh3 {[%clk 0:00:11.8]} 61... Rg8 {[%clk 0:00:06.1]}
62. e6+ {[%clk 0:00:09.4]} 62... Ke7 {[%clk 0:00:03.9]} 63. b8=Q {[%clk
0:00:10.3]} 63... Rh1# {[%clk 0:00:03.1]} 0-1

[Event "*** SCC Grand Prix: Titled Tuesday Blitz"]
[Site "Chess.com"]
[Date "2020.07.07"]
[Round "7"]
[White "FabianoCaruana"]
[Black "Andreikka"]
[Result "1-0"]
[WhiteElo "2993"]
[BlackElo "2916"]
[TimeControl "180+1"]
[EndTime "11:20:35 PDT"]
[Termination "FabianoCaruana won on time"]

1. d4 {[%clk 0:03:00.9]} 1... Nf6 {[%clk 0:02:59.7]} 2. c4 {[%clk 0:03:01.5]}
2... e6 {[%clk 0:02:59.9]} 3. Nc3 {[%clk 0:03:02.2]} 3... Bb4 {[%clk 0:02:59.6]}
4. e3 {[%clk 0:03:02.9]} 4... O-O {[%clk 0:02:58.9]} 5. Bd3 {[%clk 0:03:03.2]}
5... d5 {[%clk 0:02:58.8]} 6. Nf3 {[%clk 0:03:03.5]} 6... c5 {[%clk 0:02:55.5]}
7. O-O {[%clk 0:03:03.1]} 7... dxc4 {[%clk 0:02:55.1]} 8. Bxc4 {[%clk
0:03:03.3]} 8... Bd7 {[%clk 0:02:55.3]} 9. Qe2 {[%clk 0:03:02.3]} 9... Bc6
{[%clk 0:02:49]} 10. Rd1 {[%clk 0:03:02.2]} 10... Nbd7 {[%clk 0:02:45.3]} 11. a3
{[%clk 0:03:01.5]} 11... Bxc3 {[%clk 0:02:44.8]} 12. bxc3 {[%clk 0:03:02.4]}
12... Qc7 {[%clk 0:02:39.2]} 13. Ba2 {[%clk 0:02:52.3]} 13... Rfe8 {[%clk
0:02:31.4]} 14. Bb2 {[%clk 0:02:49]} 14... Rac8 {[%clk 0:02:26.1]} 15. c4 {[%clk
0:02:35.9]} 15... cxd4 {[%clk 0:02:25.5]} 16. exd4 {[%clk 0:02:35.3]} 16... Nb6
{[%clk 0:02:13.2]} 17. Rac1 {[%clk 0:02:31.5]} 17... Qf4 {[%clk 0:02:08]} 18.
Ne5 {[%clk 0:02:13.7]} 18... Red8 {[%clk 0:02:01.1]} 19. f3 {[%clk 0:02:00.9]}
19... Ba4 {[%clk 0:01:54.8]} 20. Rd2 {[%clk 0:01:55.2]} 20... Nbd7 {[%clk
0:01:50.8]} 21. Nd3 {[%clk 0:01:47.2]} 21... Qf5 {[%clk 0:01:50.3]} 22. Nf2
{[%clk 0:01:43.4]} 22... Qa5 {[%clk 0:01:21.7]} 23. Bb1 {[%clk 0:01:41.2]} 23...
Bc6 {[%clk 0:01:10.2]} 24. Bd3 {[%clk 0:01:24]} 24... Re8 {[%clk 0:00:57.7]} 25.
Rdd1 {[%clk 0:01:14.8]} 25... Ba4 {[%clk 0:00:55.5]} 26. Re1 {[%clk 0:01:13.9]}
26... Bc6 {[%clk 0:00:54.6]} 27. Qe3 {[%clk 0:01:09.6]} 27... Qc7 {[%clk
0:00:51.1]} 28. Bc3 {[%clk 0:01:06.2]} 28... b6 {[%clk 0:00:49]} 29. Qg5 {[%clk
0:01:05.4]} 29... h6 {[%clk 0:00:47.8]} 30. Qh4 {[%clk 0:01:04.8]} 30... Qd6
{[%clk 0:00:45.8]} 31. Bb4 {[%clk 0:01:02.6]} 31... Qb8 {[%clk 0:00:46.3]} 32.
Rc2 {[%clk 0:00:55.2]} 32... a5 {[%clk 0:00:45.1]} 33. Bc3 {[%clk 0:00:54.2]}
33... Qd6 {[%clk 0:00:45.5]} 34. Bb2 {[%clk 0:00:53]} 34... Bb7 {[%clk
0:00:42.1]} 35. Rec1 {[%clk 0:00:44]} 35... Bc6 {[%clk 0:00:27]} 36. Qg3 {[%clk
0:00:38.5]} 36... Qf8 {[%clk 0:00:21.7]} 37. Re1 {[%clk 0:00:35.9]} 37... Ba4
{[%clk 0:00:21.6]} 38. Rce2 {[%clk 0:00:35]} 38... Bc6 {[%clk 0:00:19.3]} 39. h3
{[%clk 0:00:24.4]} 39... Nh5 {[%clk 0:00:17]} 40. Qh4 {[%clk 0:00:23.7]} 40...
Nhf6 {[%clk 0:00:17.4]} 41. Ng4 {[%clk 0:00:23.7]} 41... Qd6 {[%clk 0:00:08.5]}
42. Bb1 {[%clk 0:00:14.5]} 42... Nxg4 {[%clk 0:00:06.7]} 43. hxg4 {[%clk
0:00:15.4]} 43... Qf4 {[%clk 0:00:06.4]} 44. Qf2 {[%clk 0:00:12.9]} 44... Ba4
{[%clk 0:00:05.8]} 45. Bd3 {[%clk 0:00:12.9]} 45... Nf6 {[%clk 0:00:04.9]} 46.
Bc1 {[%clk 0:00:11.8]} 46... Qd6 {[%clk 0:00:04.7]} 47. g5 {[%clk 0:00:12.2]}
47... hxg5 {[%clk 0:00:04.2]} 48. Bxg5 {[%clk 0:00:13.1]} 48... Rcd8 {[%clk
0:00:04.6]} 49. Bxf6 {[%clk 0:00:12.6]} 49... gxf6 {[%clk 0:00:05.1]} 50. Re4
{[%clk 0:00:13.3]} 50... f5 {[%clk 0:00:03.9]} 51. Rh4 {[%clk 0:00:13.5]} 51...
Kf8 {[%clk 0:00:04.4]} 52. Qe3 {[%clk 0:00:13.1]} 52... Ke7 {[%clk 0:00:04.1]}
53. d5 {[%clk 0:00:13.6]} 53... Qc5 {[%clk 0:00:03.7]} 54. Qxc5+ {[%clk
0:00:13.1]} 54... bxc5 {[%clk 0:00:03.9]} 55. Bxf5 {[%clk 0:00:13.7]} 55... Kd6
{[%clk 0:00:03.7]} 56. dxe6 {[%clk 0:00:13.5]} 56... fxe6 {[%clk 0:00:04.6]} 57.
Rh6 {[%clk 0:00:13.6]} 57... Bd7 {[%clk 0:00:04.6]} 58. Bg4 {[%clk 0:00:13.2]}
58... Rb8 {[%clk 0:00:04.2]} 59. Rd1+ {[%clk 0:00:13.1]} 59... Kc7 {[%clk
0:00:04.2]} 60. Rh7 {[%clk 0:00:13.5]} 60... Rbd8 {[%clk 0:00:04.4]} 61. f4
{[%clk 0:00:12.8]} 61... Kc6 {[%clk 0:00:03.3]} 62. Bf3+ {[%clk 0:00:12.6]}
62... Kc7 {[%clk 0:00:04]} 63. Kf2 {[%clk 0:00:12.8]} 63... Rf8 {[%clk
0:00:04.4]} 64. Ke3 {[%clk 0:00:12.7]} 64... Rh8 {[%clk 0:00:04.2]} 65. Rdxd7+
{[%clk 0:00:11.7]} 1-0